bitfinex-derivatives/quotes_ETHF0:USTF0_20251213
["timestamp","ask_amount","ask_price","bid_price","bid_amount"]
[1765647609554,3.2078,3102.2,3102.1,1.4558]
[1765647609743,3.2078,3102.2,3102.1,2.66882136]
[1765647610143,3.2078,3102.2,3102.0,0.4241]
[1765647610144,4.6256,3102.7,3102.6,0.7101]
[1765647610349,1.4178,3102.4,3102.3,1.4606394]
[1765647610549,1.42053527,3102.4,3102.3,0.0048394]
[1765647610849,2.63355663,3102.4,3102.3,0.0048394]
[1765647611058,2.63355663,3102.4,3101.9,0.00312655]
[1765647611059,1.4178,3102.0,3101.9,0.00312655]
[1765647611255,2.63082136,3102.0,3101.9,0.00312655]
[1765647611954,2.63026221,3102.0,3101.9,0.00312655]
[1765647614648,4.27042442,3102.0,3101.9,0.00312655]
[1765647614852,1.4178,3101.7,3101.6,0.0048394]
[1765647615053,14.09472442,3101.7,3101.6,0.0048394]
[1765647615952,14.09472442,3101.7,3101.6,0.0073277]
[1765647619957,1.4178,3101.3,3101.2,3.2078]
[1765647620155,2.63026221,3101.3,3101.2,3.2078]
[1765647620852,2.63026221,3101.3,3101.2,3.2104236]
[1765647623363,3.84272442,3101.3,3101.2,3.2104236]
[1765647623864,2.63026221,3101.3,3101.2,3.2104236]
[1765647625662,3.84272442,3101.3,3101.2,3.2104236]
[1765647626962,1.453,3101.0,3100.9,0.0048394]
[1765647627163,3.87792442,3101.0,3100.9,0.0048394]
[1765647627766,3.87792442,3101.0,3100.9,0.00816044]
[1765647630469,3.87967654,3101.0,3100.9,0.00816044]
[1765647632071,3.87967654,3101.0,3100.9,0.75236044]
[1765647633370,3.87967654,3101.0,3100.9,0.00816044]
[1765647634376,4.05247654,3101.0,3100.9,0.00816044]
[1765647634675,1.6258,3101.0,3100.9,0.00816044]
[1765647634872,4.05247654,3101.0,3100.9,0.00816044]
[1765647635967,19.00547654,3101.0,3100.9,0.00816044]
[1765647636169,3.9355,3101.3,3101.2,1.4783]
[1765647636368,1.94103827,3101.4,3101.3,1.4783]
[1765647636673,1.94103827,3101.6,3101.5,1.9025]
[1765647636873,1.21333827,3101.6,3101.5,1.9025]
[1765647637374,4.6815,3102.2,3102.1,0.7442]
[1765647637672,10.74483827,3102.2,3102.1,1.49117865]
[1765647638180,10.74483827,3102.2,3102.1,0.75707865]
[1765647639271,10.74483827,3102.2,3102.1,1.49117865]
[1765647639472,0.7277,3102.2,3102.1,1.49117865]
[1765647639672,1.21817766,3102.3,3102.1,4.69897865]
[1765647639874,1.21817766,3102.3,3102.2,1.4783]
[1765647640069,3.2078,3102.6,3102.5,1.9025]
[1765647640276,1.21333827,3102.7,3102.6,1.4783]
[1765647640475,1.94103827,3102.9,3102.5,3.632]
[1765647640676,1.94103827,3102.9,3102.8,1.4783]
[1765647640876,1.21333827,3102.9,3102.8,1.4783]
[1765647641069,1.21733116,3102.9,3102.8,1.4783]
[1765647641275,0.00399289,3102.9,3102.8,2.69163827]
[1765647641776,0.00399289,3102.9,3102.8,2.70451692]
[1765647641981,0.00399289,3102.9,3102.8,1.49117865]
[1765647643680,0.0048394,3103.2,3103.1,1.4783]
[1765647643881,0.0048394,3103.2,3103.1,4.6861]
[1765647644684,0.00755704,3103.2,3103.1,4.70296367]
[1765647645274,2.68703827,3103.6,3103.5,1.9025]
[1765647645685,2.68703827,3103.6,3103.5,1.91537865]
[1765647646189,5.14883827,3103.8,3103.7,1.4783]
[1765647646386,1.21722285,3103.8,3103.7,1.4783]
[1765647646790,1.21722285,3103.8,3103.7,1.49117865]
[1765647647080,0.00388458,3103.8,3103.7,1.49117865]
[1765647647280,3.2078,3104.2,3104.1,0.7442]
[1765647647281,5.89483827,3104.2,3104.1,0.7442]
[1765647647887,5.89483827,3104.2,3104.1,0.75707865]
[1765647648087,5.89483827,3104.2,3104.1,0.01287865]
[1765647648289,5.89483827,3104.2,3104.1,0.75707865]
[1765647648290,5.89765074,3104.2,3104.1,0.75707865]
[1765647648585,5.89765074,3104.2,3104.1,1.49117865]
[1765647648984,5.89765074,3104.2,3104.1,0.75707865]
[1765647649288,4.68431247,3104.2,3104.1,0.75707865]
[1765647649488,5.89765074,3104.2,3104.1,0.01287865]
[1765647650081,5.89765074,3104.2,3104.1,0.75707865]
[1765647650477,2.68985074,3104.2,3104.1,0.75707865]
[1765647650688,2.68985074,3104.2,3104.1,0.01287865]
[1765647657879,1.4795,3103.6,3103.5,1.1963]
[1765647658085,2.69283827,3103.6,3103.5,1.1963]
[1765647658284,1.98453827,3103.6,3103.5,1.9098]
[1765647658490,2.69283827,3103.9,3103.8,1.4856]
[1765647658898,2.69283827,3103.9,3103.8,0.7721]
[1765647659101,1.4795,3103.6,3103.5,1.9098]
[1765647659398,2.69283827,3103.6,3103.5,1.9098]
[1765647659783,2.69283827,3103.6,3103.5,1.1963]
[1765647659993,1.4795,3103.5,3103.4,3.2078]
[1765647660688,7.5372,3103.5,3103.4,3.2078]
[1765647662396,1.4795,3103.2,3103.1,0.00398502]
[1765647662596,3.90617654,3103.2,3103.1,0.00398502]
[1765647663799,1.4795,3103.2,3103.1,1.48958502]
[1765647663994,1.98453827,3103.2,3103.1,1.48958502]
[1765647664190,3.979,3103.3,3103.2,1.4856]
[1765647664498,5.90063827,3103.3,3103.2,1.4856]
[1765647666196,5.89871685,3103.3,3103.2,1.4856]
[1765647667496,2.69091685,3103.3,3103.2,1.4856]
[1765647668799,1.4795,3103.3,3103.2,1.4856]
[1765647669000,2.69091685,3103.3,3103.2,1.4856]
[1765647671902,1.4795,3103.3,3103.2,1.4856]
[1765647672393,0.7712,3103.3,3103.2,1.4856]
[1765647672794,1.4795,3103.3,3103.2,1.4856]
[1765647674699,1.4795,3103.3,3103.2,0.7721]
[1765647675700,1.4795,3103.3,3103.2,1.4856]
[1765647678804,0.7712,3103.2,3103.1,0.00398502]
[1765647679005,3.65842318,3103.6,3103.5,1.9094]
[1765647679206,6.39842318,3103.6,3103.5,1.9094]
[1765647680309,5.43081422,3103.6,3103.5,1.9094]
[1765647680507,4.2195,3103.6,3103.5,1.9094]
[1765647680710,2.69081422,3103.8,3103.7,1.4856]
[1765647680908,16.4315,3103.8,3103.7,1.4856]
[1765647681512,16.4315,3103.8,3103.7,0.7721]
[1765647681913,0.7712,3103.8,3103.7,1.4856]
[1765647682308,1.4748,3103.8,3103.7,1.4856]
[1765647682511,1.94551422,3103.9,3103.8,1.4429]
[1765647682710,2.64911422,3103.9,3103.8,1.4429]
[1765647683904,2.64911422,3103.9,3103.8,0.7348]
[1765647684317,2.64911422,3103.9,3103.8,1.4429]
[1765647685717,2.64911422,3103.9,3103.8,0.7348]
[1765647685917,0.7376,3103.6,3103.5,1.8794]
[1765647686119,1.454,3103.6,3103.5,1.8794]
[1765647687721,0.7376,3103.6,3103.5,1.8794]
[1765647687920,1.454,3103.6,3103.5,1.1254]
[1765647688419,1.454,3103.6,3103.5,1.8794]
[1765647691823,1.454,3103.5,3103.4,3.9094]
[1765647692025,1.454,3103.5,3103.4,4.6634]
[1765647692522,1.454,3103.5,3103.4,3.9094]
[1765647692730,1.454,3103.5,3103.4,3.2078]
[1765647693128,1.8407,3103.5,3103.4,3.2078]
[1765647694427,1.454,3103.5,3103.4,3.2078]
[1765647694628,1.454,3103.5,3103.4,3.9094]
[1765647694826,1.454,3103.5,3103.4,4.6634]
[1765647695326,0.7376,3103.5,3103.4,4.6634]
[1765647695526,2.66531422,3103.9,3103.8,0.7016]
[1765647695826,7.57831422,3103.9,3103.8,1.4556]
[1765647697326,2.66531422,3103.9,3103.8,1.4556]
[1765647697625,1.94891422,3103.9,3103.8,1.4556]
[1765647697822,2.66531422,3103.9,3103.8,1.4556]
[1765647698022,2.66531422,3103.9,3103.8,0.7016]
[1765647698422,2.66531422,3103.9,3103.5,1.8939]
[1765647698423,0.7376,3103.6,3103.5,1.8939]
[1765647698830,2.66531422,3103.9,3103.8,1.4556]
[1765647703237,1.454,3103.9,3103.8,1.4556]
[1765647704129,1.454,3103.6,3103.5,1.8939]
[1765647706035,0.7376,3103.6,3103.5,1.8939]
[1765647707138,1.454,3103.6,3103.5,1.1399]
[1765647707337,1.454,3103.6,3103.5,0.4383]
[1765647707537,1.454,3103.6,3103.5,1.8939]
[1765647708437,1.454,3103.5,3103.4,3.2078]
[1765647708637,0.7376,3103.5,3103.4,4.6634]
[1765647710345,1.454,3103.5,3103.4,3.9094]
[1765647711435,1.454,3103.5,3103.4,4.6634]
[1765647711843,0.7376,3103.5,3103.4,4.6634]
[1765647712546,1.21086683,3103.6,3103.4,4.6634]
[1765647712842,1.94846683,3103.6,3103.5,1.8939]
[1765647713143,2.66486683,3103.6,3103.5,1.8939]
[1765647713341,0.7376,3103.6,3103.5,1.8939]
[1765647713541,1.21086683,3103.7,3103.5,1.8939]
[1765647713736,16.89546683,3103.7,3103.6,1.4556]
[1765647714434,1.454,3103.6,3103.5,1.1399]
[1765647714634,1.454,3103.6,3103.5,1.8939]
[1765647714837,0.7376,3103.6,3103.5,1.8939]
[1765647720352,1.95576683,3103.7,3103.6,1.4537]
[1765647721644,1.21086683,3103.7,3103.6,1.4537]
[1765647721851,2.70996683,3103.7,3103.6,1.4537]
[1765647722349,1.21086683,3103.7,3103.6,1.4537]
[1765647722745,1.95576683,3103.7,3103.6,1.4537]
[1765647724755,2.70996683,3103.7,3103.6,0.7464]
[1765647724942,1.4991,3103.4,3103.3,4.6615]
[1765647725143,2.70996683,3103.4,3103.3,4.6615]
[1765647725349,1.95576683,3103.4,3103.3,4.6615]
[1765647725549,1.21086683,3103.4,3103.3,4.6615]
[1765647729454,1.21086683,3103.4,3103.3,1.4537]
[1765647731460,1.95576683,3103.4,3103.3,1.4537]
[1765647731752,2.70996683,3103.4,3103.3,1.4537]
[1765647732054,2.71041496,3103.4,3103.3,1.4537]
[1765647733366,2.71041496,3103.4,3103.3,0.7464]
[1765647734269,1.4991,3103.3,3103.2,3.2078]
[1765647734865,1.4991,3103.3,3103.2,3.9542]
[1765647736570,1.4991,3103.3,3103.2,4.6615]
[1765647736865,1.4991,3103.3,3103.2,3.9542]
[1765647737266,1.4991,3103.3,3103.2,3.2078]
[1765647739067,2.71063831,3103.3,3103.2,4.6615]
[1765647739263,1.21153831,3103.3,3103.2,4.6615]
[1765647739468,1.95643831,3103.3,3103.2,4.6615]
[1765647740073,2.71063831,3103.3,3103.2,4.6615]
[1765647740267,0.7449,3103.3,3103.2,4.6615]
[1765647740569,1.95643831,3103.3,3103.2,4.6615]
[1765647742170,0.7449,3103.3,3103.2,4.6615]
[1765647742370,1.95643831,3103.3,3103.2,4.6615]
[1765647743772,2.71063831,3103.3,3103.2,4.6615]
[1765647745571,2.71063831,3103.3,3103.2,3.2078]
[1765647745969,3.92217662,3103.3,3103.2,3.2078]
[1765647746766,2.71063831,3103.3,3103.2,4.7017]
[1765647747274,1.4501,3103.7,3103.6,0.7344]
[1765647747470,1.4501,3103.6,3103.5,1.1594]
[1765647748472,2.66163831,3103.6,3103.5,1.1594]
[1765647748774,17.60663831,3103.6,3103.5,1.1594]
[1765647749679,17.60663831,3103.6,3103.5,1.9189]
[1765647751881,17.60663831,3103.6,3103.5,1.1594]
[1765647755087,0.7422,3103.3,3103.2,4.7017]
[1765647755290,2.66163831,3103.3,3103.2,3.2078]
[1765647755682,2.66163831,3103.3,3103.2,3.9422]
[1765647755890,2.66163831,3103.3,3103.2,4.7017]
[1765647757993,2.66163831,3103.3,3103.2,3.9422]
[1765647758287,2.66163831,3103.3,3103.2,3.2078]
[1765647758691,2.66163831,3103.3,3103.2,3.9422]
[1765647759587,2.66163831,3103.3,3103.2,4.7017]
[1765647759792,17.60563831,3103.3,3103.2,4.7017]
[1765647762291,17.60563831,3103.3,3103.2,3.9422]
[1765647762887,17.60563831,3103.3,3103.2,4.7017]
[1765647763292,16.15553831,3103.3,3103.2,4.7017]
[1765647763496,16.89773831,3103.3,3103.2,4.7017]
[1765647764386,16.89773831,3103.3,3103.2,1.4939]
[1765647764898,17.60563831,3103.3,3103.2,1.4939]
[1765647769101,17.60563831,3103.3,3103.2,0.7344]
[1765647769300,1.4501,3103.2,3103.1,3.21178502]
[1765647770493,1.4501,3103.2,3103.1,3.94618502]
[1765647770695,1.4501,3103.2,3103.1,4.70568502]
[1765647773403,1.4501,3103.2,3103.1,3.94618502]
[1765647774605,2.66170692,3103.2,3103.1,3.94618502]
[1765647775197,2.66170692,3103.2,3103.1,3.21178502]
[1765647775398,2.66170692,3103.2,3103.1,3.98318502]
[1765647775802,2.66170692,3103.2,3103.1,4.69518502]
[1765647778407,2.66170692,3103.2,3103.1,3.98318502]
[1765647778603,3.87331384,3103.2,3103.1,3.98318502]
[1765647778804,3.87331384,3103.2,3103.1,4.69518502]
[1765647779110,2.66170692,3103.2,3103.1,4.69518502]
[1765647781612,2.66170692,3103.2,3103.1,3.21178502]
[1765647782108,3.87331384,3103.2,3103.1,3.21178502]
[1765647782705,1.95380692,3103.2,3103.1,4.69518502]
[1765647783410,2.68560692,3103.2,3103.1,4.69518502]
[1765647784413,2.68560692,3103.2,3103.1,3.98318502]
[1765647784714,2.68560692,3103.2,3103.1,3.21178502]
[1765647784912,2.68560692,3103.2,3103.1,3.98318502]
[1765647785510,3.89721384,3103.2,3103.1,3.98318502]
[1765647786615,1.474,3103.2,3103.1,3.98318502]
[1765647786805,2.68560692,3103.2,3103.1,4.69518502]
[1765647787713,1.474,3103.2,3103.1,4.69518502]
[1765647787916,2.68560692,3103.2,3103.1,4.69518502]
[1765647793917,2.68562232,3103.2,3103.1,4.69518502]
[1765647797232,2.68562232,3103.2,3103.1,1.48738502]
[1765647800234,2.68562232,3103.2,3103.1,0.77538502]
[1765647800737,2.68562232,3103.2,3103.1,1.48738502]
[1765647801038,1.95382232,3103.2,3103.1,1.48738502]
[1765647803039,2.68562232,3103.2,3103.1,1.48738502]
[1765647809950,2.68563337,3103.2,3103.1,1.48738502]
[1765647812241,1.21163337,3103.2,3103.1,1.48738502]
[1765647812443,4.41943337,3103.6,3103.5,1.8974]
[1765647812645,7.74343337,3103.6,3103.5,1.8974]
[1765647813448,9.17873337,3103.6,3103.5,1.1769]
[1765647815454,1.4353,3103.2,3103.1,4.68538502]
[1765647815640,2.64693337,3103.2,3103.1,4.68538502]
[1765647816340,1.91453337,3103.2,3103.1,4.68538502]
[1765647817153,2.64693337,3103.2,3103.1,4.68538502]
[1765647817352,2.64693337,3103.2,3103.1,1.47758502]
[1765647817747,2.64693337,3103.2,3103.1,0.75708502]
[1765647818049,2.64693337,3103.2,3103.1,1.47758502]
[1765647819251,1.91453337,3103.2,3103.1,1.47758502]
[1765647819451,1.21163337,3103.2,3103.1,1.47758502]
[1765647824461,1.91453337,3103.2,3103.1,1.47758502]
[1765647826763,2.64693337,3103.2,3103.1,1.47758502]
[1765647827453,2.64693337,3103.2,3103.1,0.75708502]
[1765647827654,2.64693337,3103.2,3103.1,1.47758502]
[1765647829758,3.85856674,3103.2,3103.1,0.00398502]
[1765647830761,2.64693337,3103.2,3103.1,0.00398502]
[1765647833368,3.85856674,3103.2,3103.1,0.00398502]
[1765647833864,2.64693337,3103.2,3103.1,0.00398502]
[1765647834669,2.64693337,3103.2,3103.1,0.75708502]
[1765647835360,2.64693337,3103.2,3103.1,1.47758502]
[1765647843374,17.58993337,3103.2,3103.1,1.47758502]
[1765647844373,17.58993337,3103.2,3103.1,0.00398502]
[1765647845776,17.59004947,3103.2,3103.1,0.74988502]
[1765647846274,17.59004947,3103.2,3103.1,1.46598502]
[1765647848274,17.59004947,3103.2,3103.1,0.74988502]
[1765647848976,17.59004947,3103.2,3103.1,0.00398502]
[1765647853979,18.8018118,3103.2,3103.1,0.00398502]
[1765647856179,18.8018118,3103.2,3103.1,0.74988502]
[1765647857980,18.8018118,3103.2,3103.1,0.00398502]
[1765647858584,1.4886,3102.8,3102.7,3.2078]
[1765647858884,2.7003559,3102.8,3102.7,3.2078]
[1765647859676,2.7003559,3102.8,3102.7,3.21192896]
[1765647866388,2.7003559,3102.8,3102.7,3.98012896]
[1765647866789,2.7003559,3102.8,3102.7,3.21192896]
[1765647867091,2.7003559,3102.8,3102.7,3.98012896]
[1765647867882,2.7003559,3102.8,3102.7,3.21192896]
[1765647868083,3.9121118,3102.8,3102.7,3.21192896]
[1765647868887,3.9347,3103.1,3103.0,0.7682]
[1765647869089,20.6279118,3103.1,3103.0,0.7682]
[1765647870788,7.0979118,3103.1,3103.0,0.7682]
[1765647871093,22.0409118,3103.1,3103.0,0.7682]
[1765647871791,0.7269,3102.8,3102.7,4.73232896]
[1765647872096,2.6783559,3102.8,3102.7,4.73232896]
[1765647874190,1.9386559,3102.8,3102.7,4.73232896]
[1765647874893,2.6783559,3102.8,3102.7,1.52452896]
[1765647875097,1.9386559,3102.8,3102.7,1.52452896]
[1765647875792,2.6783559,3102.8,3102.7,1.52452896]
[1765647878301,2.6783559,3102.8,3102.7,0.00412896]
[1765647878596,2.6783559,3102.8,3102.7,0.77232896]
[1765647878795,2.6783559,3102.8,3102.7,0.00412896]
[1765647880199,3.8901118,3102.8,3102.7,0.00412896]
[1765647880698,2.6783559,3102.8,3102.7,0.00412896]
[1765647881099,3.8901118,3102.8,3102.7,0.00412896]
[1765647881793,3.89109652,3102.8,3102.7,0.00412896]
[1765647886004,2.67884826,3102.8,3102.7,0.00412896]
[1765647889016,3.89109652,3102.8,3102.7,0.00412896]
[1765647894724,2.67884826,3102.8,3102.7,0.00412896]
[1765647898225,3.89109652,3102.8,3102.7,0.00412896]
[1765647900925,1.4405,3102.1,3102.0,4.3758]
[1765647901123,17.59674826,3102.1,3102.0,3.2078]
[1765647901630,0.7054,3101.7,3101.6,4.6589]
[1765647901823,3.86728595,3101.7,3101.6,4.66120211]
[1765647903926,0.00228943,3101.7,3101.6,4.66120211]
[1765647904131,1.21453769,3101.7,3101.6,4.66120211]
[1765647904333,0.00228943,3101.7,3101.6,4.66120211]
[1765647913633,0.00228943,3101.7,3101.6,10.66120211]
[1765647913837,0.00228943,3101.7,3101.6,4.66120211]
[1765647914234,0.00228943,3101.7,3101.6,4.82239211]
[1765647919240,0.0048394,3102.0,3101.9,1.61227]
[1765647920436,0.0082363,3102.0,3101.9,1.61227]
[1765647923748,0.7433363,3102.0,3101.9,1.61227]
[1765647924539,0.0082363,3102.0,3101.9,1.61227]
[1765647928945,0.7588,3102.6,3102.5,1.9094]
[1765647929152,2.69640783,3102.9,3102.8,0.723]
[1765647929556,0.7588,3102.6,3102.5,1.9094]
[1765647930054,0.76292083,3102.6,3102.5,1.9094]
[1765647933253,1.48832083,3102.6,3102.5,1.9094]
[1765647933853,0.76292083,3102.6,3102.5,1.9094]
[1765647934050,1.97512866,3102.6,3102.5,1.9094]
[1765647934354,1.97512866,3102.6,3102.3,0.16115]
[1765647934355,1.4842,3102.4,3102.3,1.62675]
[1765647934759,0.7588,3102.4,3102.3,1.62675]
[1765647935851,0.00412083,3102.6,3102.5,1.9094]
[1765647936952,1.48832083,3102.6,3102.5,1.9094]
[1765647937353,1.48832083,3102.6,3102.5,0.4438]
[1765647937549,1.4842,3102.4,3102.3,1.62675]
[1765647937750,2.69640783,3102.4,3102.3,1.62675]
[1765647937957,2.69640783,3102.4,3102.3,1.4656]
[1765647938553,1.21220783,3102.4,3102.3,1.4656]
[1765647938766,0.00412083,3102.6,3102.5,1.9094]
[1765647949857,1.48832083,3102.6,3102.5,1.9094]
[1765647950361,1.48832083,3102.6,3102.5,1.1668]
[1765647950664,0.76292083,3102.6,3102.5,1.9094]
[1765647950860,1.48832083,3102.6,3102.5,1.9094]
[1765647952253,1.48832083,3102.6,3102.5,1.1668]
[1765647952557,1.4842,3102.3,3102.2,2.88088495]
[1765647952759,2.69640783,3102.3,3102.2,2.88088495]
[1765647952958,2.69640783,3102.3,3102.2,3.60388495]
[1765647953166,1.21220783,3102.3,3101.7,4.6734]
[1765647953354,1.21220783,3101.8,3101.7,4.6734]
[1765647953754,1.97100783,3101.8,3101.7,1.4656]
[1765647954255,0.7588,3101.8,3101.7,1.4656]
[1765647954954,1.21249016,3102.0,3101.7,1.4656]
[1765647955455,1.94779016,3102.0,3101.9,1.4489]
[1765647955654,3.9431,3102.3,3102.2,1.4489]
[1765647955854,3.2078,3102.3,3102.2,1.4489]
[1765647956163,1.94779016,3102.9,3102.8,1.4489]
[1765647956470,1.21249016,3102.9,3102.8,1.4489]
[1765647956961,1.21484832,3102.9,3102.8,1.4489]
[1765647957762,1.95014832,3102.9,3102.8,1.4489]
[1765647958357,0.00235816,3102.9,3102.8,1.4489]
[1765647958857,0.73765816,3102.9,3102.8,1.4489]
[1765647960455,1.4948,3102.7,3102.6,3.9349]
[1765647960657,2.70729016,3102.7,3102.6,3.9349]
[1765647961059,1.4948,3102.7,3102.6,3.9349]
[1765647961279,2.70729016,3102.7,3102.6,3.9349]
[1765647962565,1.4948,3102.7,3102.6,3.9349]
[1765647962767,1.4948,3102.7,3102.6,4.6567]
[1765647963766,1.4948,3102.7,3102.6,1.4489]
[1765647966364,0.73765816,3102.9,3102.8,1.4489]
[1765647966563,0.00235816,3102.9,3102.8,1.4489]
[1765647968558,0.73765816,3102.9,3102.8,1.4489]
[1765647968767,1.4948,3102.7,3102.6,4.6567]
[1765647969666,1.4948,3102.3,3102.2,4.6567]
[1765647969867,1.9499,3102.5,3102.4,1.4489]
[1765647970473,1.1904,3102.5,3102.4,1.4489]
[1765647971168,1.9499,3102.5,3102.4,0.7271]
[1765647971378,1.4948,3102.3,3102.2,4.6567]
[1765647973069,0.7353,3102.3,3102.2,4.6567]
[1765647973274,1.66759016,3102.5,3102.2,4.6567]
[1765647973674,3.16239016,3102.5,3102.4,1.4489]
[1765647973874,2.40289016,3102.5,3102.4,1.4489]
[1765647974074,3.16239016,3102.5,3102.4,1.4489]
[1765647974672,1.1904,3102.5,3102.4,1.4489]
[1765647976678,1.9499,3102.5,3102.4,1.4489]
[1765647977673,1.4948,3102.3,3102.2,3.2078]
[1765647977983,2.70698266,3102.3,3102.2,3.2078]
[1765647983385,1.4948,3101.7,3101.6,1.45120211]
[1765647983590,2.70698266,3101.7,3101.6,0.72940211]
[1765647983978,2.70698266,3101.7,3101.6,1.45120211]
[1765647984383,2.70698266,3101.7,3101.6,0.72940211]
[1765647984680,3.91916532,3101.7,3101.6,0.00230211]
[1765647985077,2.70698266,3101.7,3101.6,0.00230211]
[1765647985483,3.91916532,3101.7,3101.6,0.00230211]
[1765647986374,7.12696532,3101.7,3101.6,0.00230211]
[1765647988488,1.8826,3101.0,3100.9,3.2078]
[1765647988686,3.09478266,3101.0,3100.9,3.9081]
[1765647989079,3.09478266,3101.0,3100.9,4.6721]
[1765647989280,3.09478266,3101.0,3100.9,4.67585278]
[1765647990087,3.095738,3101.0,3100.9,4.67585278]
[1765647990481,2.395838,3101.0,3100.9,4.67585278]
[1765647990686,3.095738,3101.0,3100.9,4.67585278]
[1765647991484,2.395838,3101.0,3100.9,4.67585278]
[1765647991687,1.1827,3101.0,3100.9,4.67585278]
[1765647991887,0.4285,3101.0,3100.9,4.67585278]
[1765647995191,1.967338,3101.2,3101.1,1.4643]
[1765647995382,2.667238,3101.2,3101.1,1.4643]
[1765647996192,1.967338,3101.2,3101.1,1.4643]
[1765647997589,2.667238,3101.2,3101.1,1.4643]
[1765647999487,1.8826,3101.0,3100.9,4.67585278]
[1765647999991,3.095738,3101.0,3100.9,4.67585278]
[1765648001390,0.4285,3101.0,3100.9,4.67585278]
[1765648003685,1.8826,3101.0,3100.9,4.67585278]
[1765648004095,3.095738,3101.0,3100.9,4.67585278]
[1765648004588,2.395838,3101.0,3100.9,4.67585278]
[1765648005290,1.1827,3101.0,3100.9,4.67585278]
[1765648005494,0.4285,3101.0,3100.9,4.67585278]
[1765648005694,1.213138,3101.2,3100.9,4.67585278]
[1765648005895,1.967338,3101.2,3101.1,1.4643]
[1765648007895,1.213138,3101.2,3101.1,1.4643]
[1765648008294,1.967338,3101.2,3101.1,1.4643]
[1765648009094,2.667238,3101.2,3101.1,1.4643]
[1765648012102,1.8826,3101.0,3100.9,3.91185278]
[1765648012288,3.095738,3101.0,3100.9,4.67585278]
[1765648013602,0.4285,3101.0,3100.9,4.67585278]
[1765648016899,1.213138,3101.2,3100.9,4.67585278]
[1765648017095,1.964438,3101.2,3101.1,1.4827]
[1765648017298,2.695038,3101.2,3101.1,1.4827]
[1765648017801,1.9355,3101.0,3100.9,4.69425278]
[1765648018500,1.9355,3101.0,3100.9,1.48645278]
[1765648018700,1.2049,3101.0,3100.9,4.69425278]
[1765648019501,1.9355,3101.0,3100.9,4.69425278]
[1765648019901,3.148638,3101.0,3100.9,3.21155278]
[1765648020095,3.148638,3101.0,3100.9,4.69425278]
[1765648021204,3.148638,3101.0,3100.9,1.48645278]
[1765648021497,1.964438,3101.2,3101.1,1.4827]
[1765648021700,10.032,3101.2,3101.1,1.4827]
[1765648022097,10.7833,3101.2,3101.1,1.4827]
[1765648024099,12.727038,3101.2,3101.1,1.4827]
[1765648025506,12.727038,3101.2,3101.1,0.7408]
[1765648027111,11.5139,3101.2,3101.1,0.7408]
[1765648027908,1.4819,3101.2,3101.1,0.7408]
[1765648030207,1.9355,3101.0,3100.9,3.37277278]
[1765648030408,1.2049,3101.0,3100.9,1.64767278]
[1765648031314,1.9355,3101.0,3100.9,1.64767278]
[1765648034312,0.7561394,3101.3,3101.2,1.4827]
[1765648034517,13.58170268,3101.3,3101.2,1.4827]
[1765648034910,13.58170268,3101.3,3101.2,0.7408]
[1765648035110,1.2049,3101.0,3100.9,4.85547278]
[1765648043824,1.5024394,3101.3,3101.2,1.4964]
[1765648044021,1.5024394,3101.3,3101.2,0.7467]
[1765648049823,1.1773,3101.0,3100.9,4.85377278]
[1765648050029,1.9091,3101.0,3100.9,3.37277278]
[1765648050330,1.9091,3101.0,3100.9,4.08717278]
[1765648051330,1.9091,3101.0,3100.9,4.85377278]
[1765648051528,1.1773,3101.0,3100.9,4.85377278]
[1765648051728,0.4238,3101.0,3100.9,4.85377278]
[1765648053130,0.4238,3101.0,3100.9,1.64597278]
[1765648057232,1.1773,3101.0,3100.9,1.64597278]
[1765648057433,1.9091,3101.0,3100.9,1.64597278]
[1765648060531,0.4238,3101.0,3100.9,1.64597278]
[1765648060937,1.1773,3101.0,3100.9,1.64597278]
[1765648061137,1.9091,3101.0,3100.9,1.64597278]
[1765648062337,1.1773,3101.0,3100.9,1.64597278]
[1765648063131,0.4238,3101.0,3100.9,1.64597278]
[1765648063838,0.0048394,3101.3,3100.9,0.16497278]
[1765648064137,4.1091394,3101.3,3101.2,1.481]
[1765648065134,4.1091394,3101.3,3101.2,0.7144]
[1765648066352,1.4901394,3101.3,3101.2,1.481]
[1765648067042,1.4901394,3101.3,3101.2,0.7144]
[1765648067943,1.9091,3101.0,3100.9,1.64597278]
[1765648068941,0.4238,3101.0,3100.9,1.64597278]
[1765648069441,1.1773,3101.0,3100.9,1.64597278]
[1765648069843,1.9091,3101.0,3100.9,1.64597278]
[1765648070044,1.1773,3101.0,3100.9,1.64597278]
[1765648077345,1.9513,3101.0,3100.9,1.64597278]
[1765648077648,1.1773,3101.0,3100.9,1.64597278]
[1765648080951,1.9513,3101.0,3100.9,1.64597278]
[1765648083650,1.1773,3101.0,3100.9,1.64597278]
[1765648084955,1.9513,3101.0,3100.9,0.16497278]
[1765648085143,1.5208,3100.9,3100.8,3.2078]
[1765648085452,1.5208,3100.7,3100.6,0.0048394]
[1765648086047,1.52378492,3100.7,3100.6,0.00751614]
[1765648088549,11.10678492,3100.7,3100.6,0.76951614]
[1765648088855,1.52378492,3100.7,3100.6,0.76951614]
[1765648089051,5.99878492,3100.7,3100.6,0.76951614]
[1765648089550,5.99878492,3100.7,3100.6,0.00751614]
[1765648090854,7.21175501,3100.7,3100.6,0.00751614]
[1765648093350,1.52378492,3100.7,3100.6,0.00751614]
[1765648093544,0.00298492,3100.7,3100.6,1.51191614]
[1765648094044,0.74978492,3100.7,3100.6,1.51191614]
[1765648094246,1.52378492,3100.7,3100.6,1.51191614]
[1765648094955,0.00298492,3100.7,3100.6,1.51191614]
[1765648096857,0.74978492,3100.7,3100.6,1.51191614]
[1765648097154,1.52378492,3100.7,3100.6,1.51191614]
[1765648097854,0.74978492,3100.7,3100.6,1.51191614]
[1765648098356,0.00298492,3100.7,3100.6,1.51191614]
[1765648099853,0.74978492,3100.7,3100.6,1.51191614]
[1765648100357,0.00298492,3100.7,3100.6,1.51191614]
[1765648100959,0.74978492,3100.7,3100.6,1.51191614]
[1765648101457,0.00298492,3100.7,3100.6,1.51191614]
[1765648102862,0.00298492,3100.7,3100.6,2.72507514]
[1765648103461,0.00298492,3100.7,3100.6,5.93287514]
[1765648106565,0.73478492,3100.7,3100.6,5.93287514]
[1765648109264,3.2126394,3101.3,3100.6,5.64163414]
[1765648109459,3.2126394,3101.3,3101.2,2.613359]